Cogmind - Beta 17 @@@ ROGUE MODE // 2026.07.18 @ 12:49:37 Player: Suffixing Result: Destroyed by Y-45 Defender with Heavy Assault Rifle Performance ------------- Evolutions (0) 0 Regions Visited (3) 600 Robots Destroyed (23) 115 Value Destroyed (609) 609 Prototype IDs (0) 0 Alien Tech Used (0) 0 Bonus (0) 0 TOTAL SCORE: 1324 Bonus ------- None Cogmind --------- Core Integrity 0/250 Matter 80/300 Energy 100/100 System Corruption 2% Temperature Cool (9) Movement Treading (480) Ox4 Location -8/Recycling Parts ------- > --- POWER (1) -------- (None) > --- PROPULSION (2) --- Light Treads > --- UTILITY (2) ------ Huge Storage Unit > --- WEAPON (2) ------- Subdweller Machine Gun Subdweller Machine Gun > --- INVENTORY (25) --- Subdweller Power Source Subdweller Power Source Subdweller Power Source Light Treads Light Treads Wheel Wheel Subdweller Monowheel Subdweller Monowheel Subdweller Monowheel Subdweller Monowheel Subdweller Monowheel Improved Heat Sink Large Storage Unit Subdweller Optics Light Armor Plating Subdweller Laser Light Assault Rifle Light Assault Rifle Battle Rifle Peak State ------------ > --- POWER ------------ Light Nuclear Core > --- PROPULSION ------- Light Treads Light Treads > --- UTILITY ---------- Huge Storage Unit > --- WEAPON ----------- Light Assault Rifle Subdweller Machine Gun > --- INVENTORY -------- Ion Engine Subdweller Power Source Light Treads Light Treads Light Treads Light Treads Wheel Wheel Subdweller Monowheel Subdweller Monowheel Improved Heat Sink Large Storage Unit Subdweller Optics Light Armor Plating Light Assault Rifle Grenade Launcher [Rating: 11] Favorites ----------- Power Light Ion Engine Engine Light Ion Engine Power Core Light Nuclear Core Propulsion Light Treads Treads Light Treads Leg Aluminum Leg Utility Huge Storage Unit Storage Huge Storage Unit Protection Backup Plating I Weapon Light Assault Rifle Energy Gun Subdweller Laser Ballistic Gun Light Assault Rifle Launcher Grenade Launcher Build | -11 -10 -10 -8 ------- Run | Yrd Mat Sub Rec Slots Evolved . | . . . . Power . | . . . . Propulsion . | . . . . Utility . | . . . . Weapon . | . . . . Parts Attached 16 | 3 2 11 . Power 2 | . . 2 . Engine 1 | . . 1 . Core 1 | . . 1 . Reactor . | . . . . Propulsion 6 | 2 . 4 . Treads 6 | 2 . 4 . Leg . | . . . . Wheel . | . . . . Hover . | . . . . Flight . | . . . . Utility 2 | . 2 . . Device . | . . . . Storage 2 | . 2 . . Processor . | . . . . Hackware . | . . . . Protection . | . . . . Artifact . | . . . . Weapon 6 | 1 . 5 . Energy Gun 1 | . . 1 . Energy Cannon . | . . . . Ballistic Gun 4 | 1 . 3 . Ballistic Cannon . | . . . . Launcher 1 | . . 1 . Special Weapon . | . . . . Impact Weapon . | . . . . Slashing Weapon . | . . . . Piercing Weapon . | . . . . Special Melee Weapon . | . . . . Unidentified Prototypes . | . . . . Parts Lost 10 | . . 9 1 Power 3 | . . 3 . Propulsion 5 | . . 4 1 Utility 1 | . . 1 . Weapon 1 | . . 1 . Highest Loss Streak 2 | . . 2 1 To Critical Strikes . | . . . . Average Backups 14 | 6 9 16 20 Power 2 | 1 1 2 3 Propulsion 7 | 4 5 8 9 Utility 3 | . 1 3 4 Weapon 1 | 1 . 2 4 Tool/Special . | . . . . Unused Backups 19 | . 3 1 15 Power 5 | . 1 1 3 Propulsion 9 | . . . 9 Utility 4 | . 1 . 3 Weapon 1 | . 1 . . Tool/Special . | . . . . Average Slot Usage (%) 89 | . 98 84 71 Engine 12 | . 14 12 . Treads 27 | . 28 27 28 Storage 14 | . 14 14 14 Protection 5 | . 12 . . Energy Gun 3 | . . 4 . Ballistic Gun 24 | . 28 22 28 Peak Build Rating 11 | 6 8 11 10 Average Rating 8 | 6 7 9 10 On Entrance 7 | 6 6 8 10 Avg Prop Armor Cover (%) . | . . . . Naked Turns . | . . . . Heaviest Build 93 | 10 86 93 88 Greatest Support 40 | 40 40 40 40 Greatest Overweight (x) 4 | . 2 4 2 Average Overweight (x) 1 | . . 2 2 Largest Inventory Capacity 25 | 8 25 25 25 Average Capacity 22 | 8 17 25 25 Most Carried 20 | 6 13 20 20 Average Carried 14 | 4 9 16 20 Final Capacity 25 | 8 25 25 25 Final Carried 20 | 2 13 20 20 Class Distribution -------------------- 100% | Mutant Dominant Class ---------------- Mutant | -10/Materials Mutant | -10/Subcaves Mutant | -8/Recycling Resources | -11 -10 -10 -8 ----------- Run | Yrd Mat Sub Rec Matter Collected 588 | 195 165 228 . Remotely . | . . . . Salvage Created 808 | . 466 342 . Parts 53 | . 32 21 . Haulers Intercepted 1 | . 1 . . Recyclers Shooed 2 | . 2 . . Parts Field Recycled . | . . . . Retrieved Matter . | . . . . Parts Self-Destructed 5 | . . 5 . Prevented . | . . . . Parts Restored . | . . . . Kills | -11 -10 -10 -8 ------- Run | Yrd Mat Sub Rec Combat Hostiles Destroyed 21 | . 10 11 . Guns 17 | . 10 7 . AOE 4 | . . 4 . Classes Destroyed 5 | . 4 1 . Hauler 1 | . 1 . . Recycler 1 | . 1 . . Swarmer 7 | . 3 4 . Grunt 7 | . 7 . . Subdweller 7 | . . 7 . Best Kill Streak 4 | . 4 4 . Combat Bots Only 4 | . 3 4 . Max Kills in Single Turn 2 | . 2 2 . Gunslinging 1 | . 1 . . Exploded 2 | . . 2 . Melee . | . . . . Uniques/NPCs Destroyed . | . . . . Combat | -11 -10 -10 -8 -------- Run | Yrd Mat Sub Rec Hostile Shots Fired 224 | . 58 162 4 Missed 76 | . 14 62 . Hits 148 | . 44 100 4 Projectile 148 | . 44 100 4 Critical Strikes 1 | . 1 . . Damage Taken 1707 | . 426 1224 57 Core 253 | . 95 145 13 Absorbed by Shields . | . . . . Core Remaining (%) 100 | 100 . . . Volleys Fired 140 | . 54 84 2 Largest 2 | . 2 2 2 Hottest 90 | . 40 90 60 Shots Fired 246 | . 108 134 4 Gun 231 | . 108 119 4 Cannon . | . . . . Launcher 15 | . . 15 . Special . | . . . . Kinetic 202 | . 108 90 4 Thermal 29 | . . 29 . Explosive 15 | . . 15 . Electromagnetic . | . . . . Robot Hit Streak 13 | . 13 12 3 Robot Miss Streak 4 | . 4 3 2 Penetration Max . | . . . . Secondary Targets 2 | . 2 . . Max Gunslinging Chain 1 | . 1 . . Shots Hit Robots 148 | . 71 74 3 Core Hits 60 | . 27 33 . Critical Kills . | . . . . Critical Parts Destroyed . | . . . . Critical Strikes . | . . . . Melee Attacks . | . . . . Impact . | . . . . Slashing . | . . . . Piercing . | . . . . Sneak Attacks . | . . . . Combat Hostiles . | . . . . Follow-up Attacks . | . . . . Damage Inflicted 1944 | . 624 1263 57 Guns 1525 | . 603 865 57 Cannons . | . . . . Explosions 398 | . . 398 . Melee . | . . . . Ramming 21 | . 21 . . Kinetic 1369 | . 603 709 57 Thermal 156 | . . 156 . Explosive 398 | . . 398 . Electromagnetic . | . . . . Impact . | . . . . Slashing . | . . . . Piercing . | . . . . Highest Corruption 2 | . 2 2 2 Average Corruption 2 | . 2 2 2 Corruption Purged . | . . . . Corruption Blocked . | . . . . Effects 32 | . 8 24 . Message Errors 9 | . 2 7 . Matter Fused 11 | . 3 8 . Heat Flow Errors 3 | . 2 1 . Energy Discharges 3 | . . 3 . Data Loss (minor) 3 | . . 3 . Data Loss (major) 2 | . 1 1 . Alerts 1 | . . 1 . Overload Shots . | . . . . Overflow Damage 8 | . . 8 . Projectiles . | . . . . Explosions 8 | . . 8 . Melee . | . . . . Knockbacks . | . . . . Impact . | . . . . Kinetic . | . . . . Secondary . | . . . . Self-Inflicted Damage 34 | . . 34 . Shots 1 | . . 1 . Rammed 3 | . 3 . . Targets Rammed 3 | . 3 . . Kicked . | . . . . Crushed . | . . . . Highest Temperature 222 | . 222 194 4 Average Temperature 25 | . 22 114 4 Received Heat Transfer 486 | . 177 291 18 Siege Activations . | . . . . Martial Activations . | . . . . Shielding Activations . | . . . . Robots Disrupted . | . . . . Combat Hostiles . | . . . . Robots Corrupted . | . . . . Combat Hostiles . | . . . . Parts Fried . | . . . . Impact Corruptions . | . . . . Robots Melted . | . . . . Combat Hostiles . | . . . . Parts Melted . | . . . . Heat Transferred 200 | . . 200 . Parts Sabotaged . | . . . . Parts Stolen . | . . . . Parts Stripped . | . . . . Power Chain Reactions . | . . . . Alert | -11 -10 -10 -8 ------- Run | Yrd Mat Sub Rec Maximum Alert Level . | . . . . Low Security (%) 100 | 100 100 . 100 Level 1 . | . . . . Level 2 . | . . . . Level 3 . | . . . . Level 4 . | . . . . Level 5 . | . . . . High Security . | . . . . Max Security . | . . . . Peak Influence 170 | . 170 . 75 Initial 75 | . . . 75 Average 76 | . 76 . 74 Influence Increases 623 | . 393 230 . Destroy 0b10 Robot/C 280 | . 200 80 . Destroy 0b10 Robot/NC 10 | . 10 . . Destroy Leader 52 | . 52 . . Successful Hack 11 | . 11 . . Lose Combat Pursuer 270 | . 120 150 . Influence Decreases 568 | . 324 141 103 Entered New Map 117 | . . 34 83 Time Decay 421 | . 324 87 10 Lost Part 30 | . . 20 10 Squads Dispatched 4 | . 4 . . Investigation 1 | . 1 . . Extermination . | . . . . Reinforcement 3 | . 3 . . Assault . | . . . . Garrison . | . . . . Intercept . | . . . . Searches Triggered . | . . . . Construction Impeded . | . . . . Haulers Reinforced . | . . . . Active Scanning Responses . | . . . . Cargo Convoy Interrupts . | . . . . Stealth | -11 -10 -10 -8 --------- Run | Yrd Mat Sub Rec Distress Signals 3 | . 3 . . Communications Jammed . | . . . . Distress Signals . | . . . . Times Spotted 44 | . 27 16 1 Peak Tracking Total 4 | . 4 4 1 Tactical Retreats 11 | . 8 3 . Traps | -11 -10 -10 -8 ------- Run | Yrd Mat Sub Rec Traps Triggered 1 | . 1 . . Indirectly . | . . . . Trap Hack Attempts . | . . . . Triggered . | . . . . Disarmed . | . . . . Reprogrammed . | . . . . Reused . | . . . . Traps Extracted . | . . . . Installed . | . . . . Triggered . | . . . . Machines | -11 -10 -10 -8 ---------- Run | Yrd Mat Sub Rec Machines Disabled 4 | . . 4 . Max in Single Turn 2 | . . 2 . Machines Repaired . | . . . . Machines Dismantled . | . . . . Machines Sabotaged . | . . . . Overloaded Fab Kills . | . . . . Hacking | -11 -10 -10 -8 --------- Run | Yrd Mat Sub Rec Machines Accessed 2 | . 2 . . Terminals 1 | . 1 . . Fabricators . | . . . . Repair Stations 1 | . 1 . . Recycling Units . | . . . . Scanalyzers . | . . . . Garrison Access . | . . . . Total Hacks 5 | . 5 . . Successful 2 | . 2 . . Failed 3 | . 3 . . Catastrophic 1 | . 1 . . Database Lockouts . | . . . . Manual 1 | . 1 . . Terminals 3 | . 3 . . Fabricators . | . . . . Repair Stations 2 | . 2 . . Recycling Units . | . . . . Scanalyzers . | . . . . Garrison Access . | . . . . Terminal Hacks 1 | . 1 . . Zone Layout 1 | . 1 . . Fabricator Hacks . | . . . . Repair Station Hacks 1 | . 1 . . Refit 1 | . 1 . . Recycling Unit Hacks . | . . . . Scanalyzer . | . . . . Garrison Access Hacks . | . . . . Unauthorized Hacks . | . . . . Terminals . | . . . . Fabricators . | . . . . Repair Stations . | . . . . Recycling Units . | . . . . Scanalyzers . | . . . . Garrison Access . | . . . . Data Cores Recovered . | . . . . Used . | . . . . Hacking Detections 1 | . 1 . . Full Trace Events . | . . . . Feedback Events . | . . . . Feedback Blocked . | . . . . Robot Schematics Acquired . | . . . . Robots Built . | . . . . Authchips . | . . . . Time . | . . . . Total Robot Build Rating . | . . . . Part Schematics Acquired . | . . . . Parts Built . | . . . . Authchips . | . . . . Time . | . . . . Total Part Build Rating . | . . . . Part Studies Acquired . | . . . . Parts Repaired . | . . . . Time . | . . . . Parts Recycled . | . . . . Recycled Matter . | . . . . Retrieved Matter . | . . . . Retrieved Components . | . . . . Parts Scanalyzed . | . . . . Part Schematics Acquired . | . . . . Parts Damaged . | . . . . Bothacking | -11 -10 -10 -8 ------------ Run | Yrd Mat Sub Rec Used RIF Installer . | . . . . Robots Hacked . | . . . . Non-combat . | . . . . Combat . | . . . . Robot Hacks Applied . | . . . . Relay Couplers Released . | . . . . Fabnet Peak Effective % . | . . . . Robots Rewired . | . . . . Allies Hacked . | . . . . Hacks Repelled . | . . . . Allies | -11 -10 -10 -8 -------- Run | Yrd Mat Sub Rec Total Allies . | . . . . Largest Group . | . . . . Highest-Rated Group . | . . . . Highest-Rated Ally . | . . . . Total Orders . | . . . . Ally Attacks . | . . . . Total Damage . | . . . . Kills . | . . . . Allies Corrupted . | . . . . Allies Melted . | . . . . Intel | -11 -10 -10 -8 ------- Run | Yrd Mat Sub Rec Active Infowar (turns) . | . . . . Robot Analysis Total . | . . . . Derelict Logs Recovered . | . . . . Drone Launches . | . . . . Drone Recoveries . | . . . . Exploration | -11 -10 -10 -8 ------------- Run | Yrd Mat Sub Rec Turns Passed 2532 | 7 942 1563 20 Spaces Moved 788 | 1 384 398 5 Core . | . . . . Treads 788 | 1 384 398 5 Legs . | . . . . Wheels . | . . . . Hover . | . . . . Flight . | . . . . Fastest Speed 160 | 160 160 320 320 Average Speed 263 | 160 202 322 320 Slowest Speed 480 | 160 320 480 320 Overloaded Moves . | . . . . Propulsion Burnouts . | . . . . Robots Hopped . | . . . . Potential Cave-ins . | . . . . Cave-ins Triggered . | . . . . Exploration Rate (%) 27 | 2 77 28 3 Regions Visited 3 Branch Regions 2 Pre-discovered Areas 1 | . . 1 . Known Exits Taken . | . . . . Unknown Exits Taken 3 | 1 1 1 . Scrap Searched . | . . . . Spaces Dug . | . . . . Terrain Destroyed 46 | . . 46 . Melee . | . . . . Projectile . | . . . . AOE 46 | . . 46 . Terrain Rammed . | . . . . Walls Destroyed . | . . . . Machines Disabled . | . . . . Actions | -11 -10 -10 -8 --------- Run | Yrd Mat Sub Rec Total 1028 | 7 461 553 7 Wait 49 | . 6 43 . Move 785 | . 383 397 5 Hop . | . . . . Pick Up 26 | . 12 14 . Fast Attach . | . . . . Attach 7 | . . 7 . Detach . | . . . . Swap 13 | 3 2 8 . Drop 5 | 4 1 . . Fire 140 | . 54 84 2 Melee . | . . . . Ram . | . . . . Kick . | . . . . Crush 3 | . 3 . . Escape Stasis . | . . . . Rewire . | . . . . Trap . | . . . . Miscellaneous . | . . . . Route ------- -11/Scrapyard -10/Materials (discovered 5 exits: [*Mat x3] / [*Min] / [*Sub]) -10/Subcaves (discovered 2 exits: [*Mat] / [*Rec]) -8/Recycling History --------- Turn | Location | Event 8 | -11/Scrapyard | Discovered new exit (range 0) 8 | -11/Scrapyard | Entered Materials 9 | -10/Materials | Met a group of wandering Federalists 168 | -10/Materials | Lost 3 allies 257 | -10/Materials | Discovered new exit (range 16) 312 | -10/Materials | Build established: Mutant 642 | -10/Materials | Discovered new exit (range 13) 754 | -10/Materials | Discovered new exit (range 15) 905 | -10/Materials | Discovered new exit (range 16) 924 | -10/Materials | Discovered new exit (range 9) 950 | -10/Materials | Entered Subcaves 951 | -10/Subcaves | Approached by a straggling Scientist 1231 | -10/Subcaves | Discovered new exit (range 7) 1234 | -10/Subcaves | Learned location of Zion (-7) 1234 | -10/Subcaves | Met a Zionite searching for "candidates" 1538 | -10/Subcaves | Core integrity fell below 50% 2271 | -10/Subcaves | Core integrity fell below 20% 2392 | -10/Subcaves | Discovered new exit (range 14) 2513 | -10/Subcaves | Entered Recycling 2514 | -8/Recycling | Met a Zionite searching for Scraptown 2533 | -8/Recycling | Destroyed by Y-45 Defender with Heavy Assault Rifle Last Messages --------------- 02409_ System corrupted: Matter fused (-6). 02413_ Destroyed Autobeam. 02467_ Acquired Battle Rifle. 02485_ The unstable cave ceiling collapses. 02505_ System corrupted: Component data lost. 02505_ The unstable cave ceiling collapses. LOCATION=UNKNOWN GOAL=ESCAPE 02514_ RT-ICP(z): "You there! You wouldn't happen to know where Scraptown is, do you?" 02515_ RT-ICP(z): "I've heard great things about that place, but almost no one seems to know where to find it, only that you access it somewhere from Recycling here." 02516_ RT-ICP(z): "Anyway I've been here searching too long already, time to slink back to the caves before I'm caught. You'd best do the same." 02528_ Y-45 Defender springs to life. 02533_ Lgt. Treads destroyed. Map ----- +----------------------------------------------------+ | ?????????????????????????????????????????????????? | | ?????????????????????????????????????????????????? | | ?????????????????????????????????????????????????? | | ?????????????????????????????????????????????????? | | ?????????????????????????????????????????????????? | | ?????????????????????????????????????????????????? | | ?????????????????????????????????????????????????? | | ?????????????????????????????????????????????????? | | ?????????????????????????????????????????????????? | | ?????????????????????????????????????????????????? | | ?????????????????????????????????????????????????? | | ?????????????????????????????????????????????????? | | ?????????????????????????????????????????????????? | | ?????????????????????????????????????????????????? | | ?????????????????????????????????????????????????? | | ?????????????????????????????????????????????????? | | ?????????????????????????????????????????????????? | | ?????????????????????????????????????????????????? | | ?????????????????????????????????????????????????? | | ?????????????????????????????????????????????????? | | ?????????????????????????????????????????????????? | | ????????????????????#????????????????????????????? | | ???????????########## ###########????????????????? | | ?????????? Y #????????????????? | | ?????????? z #????????????????? | | ?????????? @ #????????????????? | | ???????????????##################????????????????? | | ?????????????????????????????????????????????????? | | ?????????????????????????????????????????????????? | | ?????????????????????????????????????????????????? | | | | | | | | | | | | | | | | | | | | | | | | | | | | | | | | | | | | | | | | | +----------------------------------------------------+ Best States ------------- Heat Dissipation 25 Energy Generation 14 Energy Capacity 250 Matter Stores 300 Matter Capacity 300 Sight Range 16 Terrain Scan Density 10 Armor Coverage 80 Evasion (%) 40 Recoil Reduction 2 Item Schematics ----------------- None Robot Schematics ------------------ None Fabricated ------------ Nothing Repaired ---------- Nothing Studied --------- None Alien Tech Used ----------------- None Achievements -------------- None Challenges ------------ None Game ------ Seed PropulsionMagneticLayer Manual? 0 Play Time 00:10:17 Cumulative 55.3 hours Start 2026.07.18 @ 12:39:15 End 2026.07.18 @ 12:49:37 Sessions 1 Manual Loads 0 Difficulty Rogue Special Mode None Game No. 241 Rogue 196 Adventurer 45 Explorer 0 Win Type - Total 1 Types 1/0/0/0/0/0/0/0/0/0 Lore% 63 Gallery% 42 Achievement% 40 Wizard Run 0 Options --------- Layout 1 ASCII 0 Keyboard 0 Movement Numpad Keybinds 0 Fullscreen 1 Font 24/Smallcaps Map View 50x35 Zoom Use 0% Tactical HUD 1 Map Filters NONE Filters NONE Steam 1 RUN: d13e6c36-5f65-4ab4-bd9e-5e81222ed77d